Cogmind - Beta 13 @@@ ROGUE MODE // 2024.04.02 @ 10:06:31 Player: AbsoluteZero Result: Self-destructed Performance ------------- Evolutions (1) 500 Regions Visited (3) 600 Robots Destroyed (13) 65 Value Destroyed (421) 421 Prototype IDs (2) 40 Alien Tech Used (0) 0 Bonus (0) 0 TOTAL SCORE: 1626 Bonus ------- None Cogmind --------- Core Integrity 321/400 Matter 300/300 Energy 265/265 System Corruption 0% Temperature Cool (0) Movement Treading (160) Location -9/Materials Parts ------- > --- POWER (1) -------- Improved Ion Engine > --- PROPULSION (2) --- Light Treads Light Treads > --- UTILITY (4) ------ Large Storage Unit > --- WEAPON (2) ------- Assault Rifle > --- INVENTORY (15) --- Improved Ion Engine Light Nuclear Core Wheel Wheel Wheel Small Storage Unit High-capacity Matter Pod (200) Utility Shielding Small Laser Spread Laser Assault Rifle Peak State ------------ > --- POWER ------------ Improved Ion Engine > --- PROPULSION ------- Light Treads Light Treads > --- UTILITY ---------- Large Storage Unit Terrain Scanner Propulsion Shielding Light Armor Plating > --- WEAPON ----------- Spread Laser Autogun > --- INVENTORY -------- Light Ion Engine Light Nuclear Core Light Treads Wheel Wheel Wheel Small Storage Unit High-capacity Matter Pod Utility Shielding Small Laser Assault Rifle Assault Rifle Assault Rifle [Rating: 13] Favorites ----------- Power Light Ion Engine Engine Light Ion Engine Propulsion Light Treads Treads Light Treads Utility Propulsion Shielding Device Terrain Scanner Storage Large Storage Unit Protection Propulsion Shielding Weapon Assault Rifle Energy Gun Spread Laser Ballistic Gun Assault Rifle Build | -11 -10 -10 -9 ------- Run | Yrd Mat Min Mat Slots Evolved 2 | . . . 2 Power . | . . . . Propulsion . | . . . . Utility 2 | . . . 2 Weapon . | . . . . Parts Attached 20 | 7 3 1 9 Power 4 | 2 1 . 1 Engine 4 | 2 1 . 1 Core . | . . . . Reactor . | . . . . Propulsion 4 | 2 . . 2 Treads 4 | 2 . . 2 Leg . | . . . . Wheel . | . . . . Hover . | . . . . Flight . | . . . . Utility 6 | 1 2 1 2 Device 1 | . . . 1 Storage 2 | 1 . 1 . Processor . | . . . . Hackware . | . . . . Protection 3 | . 2 . 1 Artifact . | . . . . Weapon 6 | 2 . . 4 Energy Gun 1 | . . . 1 Energy Cannon . | . . . . Ballistic Gun 5 | 2 . . 3 Ballistic Cannon . | . . . . Launcher . | . . . . Special Weapon . | . . . . Impact Weapon . | . . . . Slashing Weapon . | . . . . Piercing Weapon . | . . . . Special Melee Weapon . | . . . . Unidentified Prototypes . | . . . . Parts Lost 8 | . 1 . 7 Power 1 | . 1 . . Propulsion 2 | . . . 2 Utility 3 | . . . 3 Weapon 2 | . . . 2 Highest Loss Streak 7 | . 1 . 7 To Critical Strikes . | . . . . Average Slot Usage (%) 93 | . 91 100 84 Engine 13 | . 14 14 11 Treads 26 | . 28 28 21 Device 1 | . . . 5 Storage 13 | . 14 14 11 Protection 11 | . 6 14 14 Energy Gun 1 | . . . 6 Ballistic Gun 24 | . 28 28 14 Naked Turns . | . . . . Heaviest Build 38 | 14 14 28 38 Greatest Support 40 | 40 40 40 40 Greatest Overweight (x) . | . . . . Average Overweight (x) . | . . . . Largest Inventory Capacity 15 | 8 8 15 15 Average Capacity 11 | 6 8 14 15 Most Carried 14 | 4 7 10 14 Average Carried 8 | 1 5 9 11 Final Capacity 15 | 8 8 15 15 Final Carried 11 | 4 7 10 11 Class Distribution -------------------- 100% | Mutant Dominant Class ---------------- Mutant | -10/Materials Mutant | -10/Mines Mutant | -9/Materials Resources | -11 -10 -10 -9 ----------- Run | Yrd Mat Min Mat Matter Collected 572 | 223 198 27 124 Remotely . | . . . . Salvage Created 546 | . 344 . 202 Parts 24 | . 13 . 11 Haulers Intercepted 2 | . 1 . 1 Recyclers Shooed 1 | . . . 1 Parts Field Recycled . | . . . . Retrieved Matter . | . . . . Parts Self-Destructed . | . . . . Prevented . | . . . . Kills | -11 -10 -10 -9 ------- Run | Yrd Mat Min Mat Combat Hostiles Destroyed 10 | . 5 . 5 Guns 9 | . 4 . 5 AOE 1 | . 1 . . Classes Destroyed 4 | . 3 . 1 Hauler 2 | . 1 . 1 Recycler 1 | . 1 . . Grunt 9 | . 5 . 4 Brawler 1 | . . . 1 Best Kill Streak 3 | . 3 . 3 Combat Bots Only 3 | . 2 . 3 Max Kills in Single Turn 2 | . 2 . 1 Gunslinging . | . . . . Exploded 1 | . 1 . . Melee . | . . . . Uniques/NPCs Destroyed . | . . . . Combat | -11 -10 -10 -9 -------- Run | Yrd Mat Min Mat Hostile Shots Fired 114 | . 31 . 83 Missed 32 | . 10 . 22 Damage Taken 1032 | . 344 . 688 Core 124 | . 45 . 79 Absorbed by Shields . | . . . . Redirected to Shielding 35 | . 8 . 27 Core Remaining (%) 91 | 100 . 82 . Volleys Fired 38 | . 21 . 17 Largest 2 | . 2 . 2 Hottest 88 | . 40 . 88 Shots Fired 74 | . 42 . 32 Gun 74 | . 42 . 32 Cannon . | . . . . Launcher . | . . . . Special . | . . . . Kinetic 59 | . 42 . 17 Thermal 15 | . . . 15 Explosive . | . . . . Electromagnetic . | . . . . Robot Hit Streak 13 | . 9 . 13 Robot Miss Streak 6 | . 3 . 6 Penetration Max . | . . . . Secondary Targets 2 | . . . 2 Max Gunslinging Chain 1 | . . . 1 Shots Hit Robots 56 | . 31 . 25 Core Hits 38 | . 17 . 21 Critical Kills . | . . . . Critical Parts Destroyed . | . . . . Critical Strikes . | . . . . Melee Attacks . | . . . . Impact . | . . . . Slashing . | . . . . Piercing . | . . . . Sneak Attacks . | . . . . Combat Hostiles . | . . . . Follow-up Attacks . | . . . . Damage Inflicted 851 | . 465 . 386 Guns 787 | . 401 . 386 Cannons . | . . . . Explosions 62 | . 62 . . Melee . | . . . . Ramming 2 | . 2 . . Kinetic 560 | . 401 . 159 Thermal 227 | . . . 227 Explosive . | . . . . Electromagnetic 62 | . 62 . . Impact . | . . . . Slashing . | . . . . Piercing . | . . . . Highest Corruption 1 | . 1 1 . Average Corruption 1 | . 1 1 . Corruption Purged . | . . . . Corruption Blocked . | . . . . Effects 5 | . 1 4 . Message Errors 1 | . 1 . . Matter Fused 2 | . . 2 . Energy Discharges 2 | . . 2 . Overload Shots . | . . . . Overflow Damage . | . . . . Projectiles . | . . . . Explosions . | . . . . Melee . | . . . . Knockbacks . | . . . . Impact . | . . . . Kinetic . | . . . . Secondary . | . . . . Self-Inflicted Damage 57 | . 57 . . Shots 3 | . 3 . . Rammed 1 | . 1 . . Targets Rammed 1 | . 1 . . Kicked . | . . . . Crushed . | . . . . Highest Temperature 254 | . 9 . 254 Average Temperature 106 | . 2 . 122 Received Heat Transfer 546 | . 183 . 363 Effects 3 | . . . 3 Interference 3 | . . . 3 Siege Activations . | . . . . Robots Corrupted . | . . . . Combat Hostiles . | . . . . Parts Fried . | . . . . Impact Corruptions . | . . . . Robots Melted . | . . . . Combat Hostiles . | . . . . Parts Melted . | . . . . Heat Transferred 275 | . . . 275 Parts Sabotaged . | . . . . Parts Stolen . | . . . . Parts Stripped . | . . . . Power Chain Reactions 1 | . 1 . . Alert | -11 -10 -10 -9 ------- Run | Yrd Mat Min Mat Peak Influence 186 | . 186 23 172 Initial 23 | . . 23 . Average 51 | . 90 16 65 Maximum Alert Level . | . . . . Low Security (%) 100 | 100 100 100 100 Level 1 . | . . . . Level 2 . | . . . . Level 3 . | . . . . Level 4 . | . . . . Level 5 . | . . . . High Security . | . . . . Max Security . | . . . . Squads Dispatched 3 | . . . 3 Investigation . | . . . . Extermination . | . . . . Reinforcement 3 | . . . 3 Assault . | . . . . Garrison . | . . . . Intercept . | . . . . Searches Triggered . | . . . . Construction Impeded . | . . . . Haulers Reinforced . | . . . . Active Scanning Responses . | . . . . Cargo Convoy Interrupts . | . . . . Stealth | -11 -10 -10 -9 --------- Run | Yrd Mat Min Mat Distress Signals 1 | . 1 . . Communications Jammed . | . . . . Distress Signals . | . . . . Times Spotted 25 | . 8 . 17 Peak Tracking Total 8 | . 3 . 8 Tactical Retreats 2 | . 2 . . Traps | -11 -10 -10 -9 ------- Run | Yrd Mat Min Mat Traps Triggered . | . . . . Indirectly . | . . . . Trap Hack Attempts . | . . . . Triggered . | . . . . Disarmed . | . . . . Reprogrammed . | . . . . Reused . | . . . . Traps Extracted . | . . . . Installed . | . . . . Triggered . | . . . . Machines | -11 -10 -10 -9 ---------- Run | Yrd Mat Min Mat Machines Disabled 3 | . 3 . . Max in Single Turn 3 | . 3 . . Machines Repaired . | . . . . Machines Dismantled . | . . . . Machines Sabotaged . | . . . . Overloaded Fab Kills . | . . . . Hacking | -11 -10 -10 -9 --------- Run | Yrd Mat Min Mat Machines Accessed 5 | . 2 1 2 Terminals 5 | . 2 1 2 Fabricators . | . . . . Repair Stations . | . . . . Recycling Units . | . . . . Scanalyzers . | . . . . Garrison Access . | . . . . Total Hacks 13 | . 5 3 5 Successful 4 | . 2 1 1 Failed 9 | . 3 2 4 Catastrophic 2 | . 1 1 . Database Lockouts . | . . . . Manual 4 | . 1 2 1 Terminals 13 | . 5 3 5 Fabricators . | . . . . Repair Stations . | . . . . Recycling Units . | . . . . Scanalyzers . | . . . . Garrison Access . | . . . . Terminal Hacks 4 | . 2 1 1 Prototype ID Bank 1 | . 1 . . Hauler Manifests 2 | . 1 . 1 Zone Layout 1 | . . 1 . Fabricator Hacks . | . . . . Repair Station Hacks . | . . . . Recycling Unit Hacks . | . . . . Scanalyzer . | . . . . Garrison Access Hacks . | . . . . Unauthorized Hacks . | . . . . Terminals . | . . . . Fabricators . | . . . . Repair Stations . | . . . . Recycling Units . | . . . . Scanalyzers . | . . . . Garrison Access . | . . . . Data Cores Recovered . | . . . . Used . | . . . . Hacking Detections 5 | . 2 1 2 Full Trace Events 1 | . . . 1 Feedback Events . | . . . . Feedback Blocked . | . . . . Robot Schematics Acquired . | . . . . Robots Built . | . . . . Authchips . | . . . . Time . | . . . . Total Robot Build Rating . | . . . . Part Schematics Acquired . | . . . . Parts Built . | . . . . Authchips . | . . . . Time . | . . . . Total Part Build Rating . | . . . . Parts Repaired . | . . . . Time . | . . . . Parts Recycled . | . . . . Recycled Matter . | . . . . Retrieved Matter . | . . . . Retrieved Components . | . . . . Parts Scanalyzed . | . . . . Part Schematics Acquired . | . . . . Parts Damaged . | . . . . Bothacking | -11 -10 -10 -9 ------------ Run | Yrd Mat Min Mat Used RIF Installer . | . . . . Robots Hacked . | . . . . Non-combat . | . . . . Combat . | . . . . Robot Hacks Applied . | . . . . Relay Couplers Released . | . . . . Fabnet Peak Effective % . | . . . . Robots Rewired . | . . . . Allies Hacked . | . . . . Hacks Repelled . | . . . . Allies | -11 -10 -10 -9 -------- Run | Yrd Mat Min Mat Total Allies . | . . . . Largest Group . | . . . . Highest-Rated Group . | . . . . Highest-Rated Ally . | . . . . Total Orders . | . . . . Ally Attacks . | . . . . Total Damage . | . . . . Kills . | . . . . Allies Corrupted . | . . . . Allies Melted . | . . . . Intel | -11 -10 -10 -9 ------- Run | Yrd Mat Min Mat Robot Analysis Total . | . . . . Derelict Logs Recovered 2 | . . 2 . Drone Launches . | . . . . Drone Recoveries . | . . . . Exploration | -11 -10 -10 -9 ------------- Run | Yrd Mat Min Mat Turns Passed 1405 | 80 480 542 303 Spaces Moved 758 | 45 249 333 131 Core 4 | 4 . . . Treads 754 | 41 249 333 131 Legs . | . . . . Wheels . | . . . . Hover . | . . . . Flight . | . . . . Fastest Speed 50 | 50 160 160 160 Average Speed 159 | 150 160 160 160 Slowest Speed 160 | 160 160 160 160 Overloaded Moves . | . . . . Propulsion Burnouts . | . . . . Robots Hopped . | . . . . Cave-ins Triggered . | . . . . Exploration Rate (%) 33 | 5 42 72 16 Regions Visited 3 Branch Regions 1 Pre-discovered Areas . | . . . . Known Exits Taken . | . . . . Unknown Exits Taken 3 | 1 1 1 . Scrap Searched 1 | . . 1 . Spaces Dug . | . . . . Terrain Destroyed 2 | . 2 . . Melee . | . . . . Projectile . | . . . . AOE 2 | . 2 . . Terrain Rammed . | . . . . Walls Destroyed . | . . . . Machines Disabled . | . . . . Actions | -11 -10 -10 -9 --------- Run | Yrd Mat Min Mat Total 876 | 54 288 342 192 Wait 47 | . 10 7 30 Move 755 | 44 248 332 131 Hop . | . . . . Pick Up 13 | 3 4 2 4 Fast Attach 10 | 6 2 . 2 Attach 4 | . 1 . 3 Detach . | . . . . Swap 6 | 1 . 1 4 Drop 2 | . 1 . 1 Fire 38 | . 21 . 17 Melee . | . . . . Ram . | . . . . Kick . | . . . . Crush 1 | . 1 . . Escape Stasis . | . . . . Rewire . | . . . . Trap . | . . . . Miscellaneous . | . . . . Route ------- -11/Scrapyard -10/Materials -10/Mines -9/Materials (discovered 1 exit: Sto) History --------- Turn | Location | Event 13 | -11/Scrapyard | Discovered new exit (range 16) 81 | -11/Scrapyard | Entered Materials 315 | -10/Materials | Build established: Mutant 409 | -10/Materials | Discovered new exit (range 8) 561 | -10/Materials | Entered Mines 631 | -10/Mines | Met a Derelict bent on vengeance 1084 | -10/Mines | Learned Materials emergency access door positions 1094 | -10/Mines | Discovered new exit (range 5) 1103 | -10/Mines | Entered Materials 1103 | -9/Materials | Evolved 2 slots: Utility x2 1104 | -9/Materials | Identified exit to Storage 1406 | -9/Materials | Self-destructed Last Messages --------------- 01368_ Autogun temporarily disabled. 01369_ Lgt. Treads destroyed. 01371_ K-01 Serf collects debris. 01371_ R-06 Scavenger collects Ion Engine. 01371_ K-01 Serf collects debris. 01373_ Lgt. Armor Plating destroyed. 01374_ K-01 Serf collects debris. 01376_ R-06 Scavenger collects Sml. Laser. 01378_ K-01 Serf collects debris. 01378_ Autogun destroyed. 01380_ Propulsion Shielding destroyed. 01381_ R-06 Scavenger collects Aluminum Leg. 01384_ Lgt. Treads destroyed. 01385_ K-01 Serf collects debris. 01386_ K-01 Serf cleans the Processing Tank. 01386_ Acquired 34 matter. 01387_ K-01 Serf cleans the Terminal. 01388_ Assault Rifle destroyed. 01391_ R-06 Scavenger collects Aluminum Leg. 01405_ Terrain Scanner destroyed. Map ----- +----------------------------------------------------+ | ?????????????????????????????????????????????????? | | ?????????????????????????????????????????????????? | | ?????????????????????????????????????????????????? | | ?????????????????????????????????????????????????? | | ?????????????????????????????????????????????????? | | ?????????????????????????????????????????????????? | | ?????????????????????????????????????????????????? | | ?????????????????????????????????????????????????? | | ?????????????????????????????????????????????????? | | ???????????+??????????????? ?????????????????????? | | ??????????????????????? a ?????????????????????? | | ??????????????????????# k #???????????????????? | | ??????????????????????# #???????????????????? | | ???????????????? ?????# #???????????????????? | | ??????????????# ????# #########???????????? | | ??????????????? ???# # +???#???????? | | ???????????????# #### # #???????????? | | ???????????????# # #???#???????? | | ???????????????? a# % #???????????? | | ????????????????? + """ #? ?????????# | | ????????????????? ^ # """ #???????????? | | ????????????????? """ # """ #??????????#? | | ???????????????# """ # """ #???????????? | | ???????????????# """ # """ #???????????? | | ???????????????# != # #???????????? | | ???????????????# !=@ # =##????#?????? | | ???????????????#a """ ! ######/##???????????? | | ????????????????? """ gg #??????????## | | ????????????????? """ gg g #??????????# | | ???????????????? "T" g % #??? ?? ???# | | ??????????????# ###### + T ???# | | ??????????????# ##???# # " ???# | | ??????????????# #########????# # ??? #??# | | ??????????????###+##????????????## ##?????????# | | ??????????????????????????????#?# ############ | | ??????????????????????????#??#### | | ????????????????????????????##! T | | ????????????????????????????#! "%" | | ???????????????????????????##! ####### % ## | | ????????????????????????????#! ## ##?????#% #? | | ????????????????????????????#! ?# #??????#% #? | | ????????????????????????????##! ?# #??????# ## | | ?????????????????????????????##??# #??????# # | | ????????????????????????????????? #??????# # | | ???????????????????????????????? #??????# # | | ??????????????????????????????? #??????# + | | ??????????????????????????????#######???#???# # | | ????????????????????????????????????????????# # | | ????????????????????????????????????????????# ## | | ??????????????????????????????? ???????? ???# | +----------------------------------------------------+ Best States ------------- Heat Dissipation 28 Energy Generation 12 Energy Capacity 265 Matter Stores 300 Matter Capacity 300 Sight Range 16 Terrain Scan Range 14 Terrain Scan Density 10 Armor Coverage 150 Propulsion Shielding 33 Utility Shielding 33 Evasion (%) 40 Recoil Reduction 2 Item Schematics ----------------- None Robot Schematics ------------------ None Fabricated ------------ Nothing Alien Tech Used ----------------- None Achievements -------------- None Challenges ------------ None Game ------ Seed SpectralXenonShielding Manual? 0 Play Time 00:11:23 Cumulative 95.5 hours Start 2024.04.02 @ 09:58:11 End 2024.04.02 @ 10:06:31 Sessions 1 Manual Loads 0 Difficulty Rogue Special Mode None Game No. 103 Rogue 103 Adventurer 0 Explorer 0 Win Type - Total 0 Types 0/0/0/0/0/0/0/0/0 Lore% 43 Gallery% 46 Achievement% 37 Wizard Run 0 Options --------- Layout 1 ASCII 0 Keyboard 0 Movement Numpad Keybinds 0 Fullscreen 1 Font 24/Smallcaps Map View 50x35 Zoom Use 0% Tactical HUD 1 Map Filters NONE Filters NONE Steam 1 RUN: d5359313-6760-4b2e-964f-239419f4bdaa